fUST/lending_fUST_20250927
["ID","MTS","AMOUNT","RATE_DAILY","PERIOD"]
[387863288,1758931878384,-942.05,0.00048767,120]
[387863289,1758931878394,-1400.99,0.00048767,120]
[387863290,1758931878403,-9594.99,0.00048767,120]
[387863291,1758931878412,-480.0,0.00048767,120]
[387863292,1758931878426,-988.16,0.00048767,120]
[387863293,1758931878435,-1293.22,0.00048767,120]
[387863294,1758931878446,-480.0,0.00048767,120]
[387863295,1758931878456,-512.41,0.00048767,120]
[387863296,1758931878465,-1484.46,0.00048767,120]
[387863297,1758931878474,-480.0,0.00048767,120]
[387863298,1758931878483,-1648.98,0.00048767,120]
[387863299,1758931878493,-480.0,0.00048767,120]
[387863300,1758931878502,-1870.12,0.00048767,120]
[387863301,1758931878511,-1799.49,0.00048767,120]
[387863302,1758931878521,-545.04852097,0.00048767,120]
[387863303,1758931878530,-213.62280693,0.00048767,120]
[387863304,1758931878540,-2180.83,0.00048767,21]
[387863305,1758931878548,-1278.33,0.00048767,120]
[387863306,1758931878558,-929.02,0.00048767,120]
[387863307,1758931878568,-668.55,0.00048767,120]
[387863308,1758931878577,-7070.83,0.00048767,120]
[387863309,1758931878588,-2531.33,0.00048767,120]
[387863310,1758931878597,-1838.84,0.00048767,120]
[387863311,1758931878606,-2097.19,0.00048767,120]
[387863312,1758931878616,-1130.74,0.00048767,120]
[387863313,1758931878626,-1770.1,0.00048767,120]
[387863314,1758931878635,-966.58,0.00048767,120]
[387863315,1758931878644,-2553.64,0.00048767,120]
[387863316,1758931878654,-1080.52,0.00048767,120]
[387863317,1758931878663,-2115.12,0.00048767,120]
[387863318,1758931878673,-480.0,0.00048767,120]
[387863319,1758931878683,-457.03147674,0.00048767,120]
[387863320,1758931878692,-1498.56,0.00048767,120]
[387863321,1758931878703,-480.0,0.00048767,120]
[387863322,1758931878713,-480.0,0.00048767,120]
[387863323,1758931878731,-225.10930017,0.00048767,120]
[387863324,1758931878750,-2085.3,0.00048767,120]
[387863325,1758931878760,-2256.75,0.00048767,120]
[387863326,1758931878770,-480.0,0.00048767,120]
[387863327,1758931878780,-480.0,0.00048767,120]
[387863328,1758931878790,-890.94,0.00048767,120]
[387863329,1758931878800,-884.22,0.00048767,120]
[387863330,1758931878809,-9281.75,0.00048767,120]
[387863331,1758931878819,-574.04,0.00048767,120]
[387863332,1758931878829,-1701.24,0.00048767,120]
[387863333,1758931878838,-546.43,0.00048767,120]
[387863334,1758931878848,-480.0,0.00048767,120]
[387863335,1758931878857,-1322.19,0.00048767,120]
[387863336,1758931878867,-822.45,0.00048767,120]
[387863337,1758931878876,-219.1,0.00048804,120]
[387863338,1758931878886,-500.0,0.00048858,30]
[387863339,1758931878895,-160.0,0.00048863,5]
[387863340,1758931878904,-1500.0,0.00049,2]
[387863341,1758931878913,-1500.0,0.00049,120]
[387863342,1758931878922,-15307.20400553,0.00049,120]
[387863343,1758931878932,-684.67,0.0004904,120]
[387863344,1758931878942,-1938.1,0.0004904,120]
[387863345,1758931878951,-4350.71,0.0004904,120]
[387863346,1758931878961,-480.0,0.00049041,120]
[387863347,1758931878970,-652.45,0.00049041,120]
[387863348,1758931878979,-480.0,0.00049041,120]
[387863349,1758931878988,-725.35,0.00049041,120]
[387863350,1758931878998,-823.76,0.00049041,120]
[387863351,1758931879007,-480.0,0.00049041,120]
[387863352,1758931879016,-480.0,0.00049041,120]
[387863353,1758931879025,-751.19,0.00049041,120]
[387863354,1758931879035,-582.06,0.00049041,120]
[387863355,1758931879044,-716.75,0.00049041,120]
[387863356,1758931879054,-539.24663858,0.00049041,120]
[387863357,1758931879064,-480.0,0.00049041,120]
[387863358,1758931879073,-847.29,0.00049041,120]
[387863359,1758931879083,-156.99578209,0.00049041,120]
[387863360,1758931879093,-480.0,0.00049041,120]
[387863361,1758931879103,-499.45,0.00049041,120]
[387863362,1758931879112,-480.0,0.00049041,120]
[387863363,1758931879122,-606.53,0.00049041,120]
[387863364,1758931879132,-480.0,0.00049041,120]
[387863365,1758931879142,-480.0,0.00049041,120]
[387863366,1758931879152,-1099.68,0.00049041,120]
[387863367,1758931879161,-480.0,0.00049041,120]
[387863368,1758931879171,-1147.9,0.00049041,120]
[387863369,1758931879180,-1064.79,0.00049041,120]
[387863370,1758931879189,-747.18,0.00049041,120]
[387863371,1758931879199,-480.0,0.00049041,120]
[387863372,1758931879208,-480.0,0.00049041,120]
[387863373,1758931879218,-480.0,0.00049041,120]
[387863374,1758931879228,-1462.51,0.00049041,120]
[387863375,1758931879239,-641.87,0.00049041,120]
[387863376,1758931879248,-187.42765807,0.00049041,120]
[387863377,1758931879258,-480.0,0.00049041,120]
[387863378,1758931879267,-1214.82,0.00049041,120]
[387863379,1758931879484,-480.0,0.00049041,120]
[387863380,1758931879494,-480.0,0.00049041,120]
[387863381,1758931879504,-523.68,0.00049041,120]
[387863382,1758931879514,-1047.97,0.00049041,120]
[387863383,1758931879524,-971.16,0.00049041,120]
[387863384,1758931879534,-853.87,0.00049041,120]
[387863385,1758931879544,-480.0,0.00049041,120]
[387863386,1758931879554,-985.42,0.00049041,120]
[387863387,1758931879563,-1999.9,0.00049041,120]
[387863388,1758931879573,-480.0,0.00049041,120]
[387863389,1758931879583,-694.17,0.00049041,120]
[387863390,1758931879593,-1309.64,0.00049041,120]
[387863391,1758931879603,-480.0,0.00049041,120]
[387863392,1758931879612,-480.0,0.00049041,120]
[387863393,1758931879622,-506.55,0.00049041,120]
[387863394,1758931879632,-1015.97,0.00049041,120]
[387863395,1758931879641,-562.29185252,0.00049041,120]
[387863396,1758931879650,-480.0,0.00049041,120]
[387863397,1758931879660,-501.98,0.00049041,120]
[387863398,1758931879670,-572.34,0.00049041,120]
[387863399,1758931879679,-480.0,0.00049041,120]
[387863400,1758931879689,-880.49,0.00049041,120]
[387863401,1758931879699,-392.79166019,0.00049041,120]
[387863402,1758931879710,-480.0,0.00049041,120]
[387863403,1758931879720,-516.1,0.00049041,120]
[387863404,1758931879729,-765.11,0.00049041,120]
[387863405,1758931879739,-560.56,0.00049041,120]
[387863406,1758931879748,-480.0,0.00049041,120]
[387863407,1758931879758,-480.0,0.00049041,120]
[387863408,1758931879768,-569.51317845,0.00049041,120]
[387863409,1758931879777,-768.16,0.00049041,120]
[387863410,1758931879787,-480.0,0.00049041,120]
[387863411,1758931879796,-480.0,0.00049041,120]
[387863412,1758931879805,-480.0,0.00049041,120]
[387863413,1758931879814,-533.64,0.00049041,120]
[387863414,1758931879824,-1366.15,0.00049041,120]
[387863415,1758931879833,-371.78173724,0.00049041,120]
[387863416,1758931879843,-1008.69,0.00049041,120]
[387863417,1758931879853,-545.16,0.00049041,120]
[387863418,1758931879862,-480.0,0.00049041,120]
[387863419,1758931879872,-961.32,0.00049041,120]
[387863420,1758931879881,-529.38,0.00049041,120]
[387863421,1758931879890,-480.0,0.00049041,120]
[387863422,1758931879899,-480.0,0.00049041,120]
[387863423,1758931879909,-2103.06,0.00049041,120]
[387863424,1758931879918,-1138.42,0.00049041,120]
[387863425,1758931879928,-1891.6,0.00049041,120]
[387863426,1758931879937,-1748.61,0.00049041,120]
[387863427,1758931879947,-480.0,0.00049041,120]
[387863428,1758931879956,-1014.65,0.00049041,120]
[387863429,1758931879965,-690.89,0.00049041,120]
[387863430,1758931879974,-598.16,0.00049041,120]
[387863431,1758931879984,-480.0,0.00049041,120]
[387863432,1758931879993,-190.92041149,0.00049041,120]
[387863433,1758931880002,-483.95,0.00049041,120]
[387863434,1758931880011,-1029.29,0.00049041,120]
[387863435,1758931880020,-480.0,0.00049041,120]
[387863436,1758931880029,-480.0,0.00049041,120]
[387863437,1758931880039,-571.33,0.00049041,120]
[387863438,1758931880048,-480.0,0.00049041,120]
[387863439,1758931880057,-1772.96,0.00049041,120]
[387863440,1758931880066,-604.34,0.00049041,120]
[387863441,1758931880075,-480.0,0.00049041,120]
[387863442,1758931880084,-1382.47,0.00049041,120]
[387863443,1758931880094,-480.0,0.00049041,120]
[387863444,1758931880103,-1069.13,0.00049041,120]
[387863445,1758931880113,-212.62,0.00049041,120]
[387863446,1758931880122,-622.73,0.00049041,120]
[387863447,1758931880132,-480.0,0.00049041,120]
[387863448,1758931880141,-865.78,0.00049041,120]
[387863449,1758931880151,-500.0,0.00049041,120]
[387863450,1758931880159,-2497.39,0.00049041,120]
[387863451,1758931880169,-480.0,0.00049041,120]
[387863452,1758931880178,-480.0,0.00049041,120]
[387863453,1758931880188,-480.0,0.00049041,120]
[387863454,1758931880197,-480.0,0.00049041,120]
[387863455,1758931880206,-3990.68,0.00049041,120]
[387863457,1758931880216,-1497.79,0.00049041,120]
[387863458,1758931880225,-623.66,0.00049041,120]
[387863459,1758931880235,-480.0,0.00049041,120]
[387863460,1758931880244,-480.0,0.00049041,120]
[387863461,1758931880254,-792.54,0.00049041,120]
[387863462,1758931880263,-480.0,0.00049041,120]
[387863463,1758931880272,-480.0,0.00049041,120]
[387863464,1758931880281,-480.0,0.00049041,120]
[387863465,1758931880290,-241.7845557,0.00049041,120]
[387863466,1758931880300,-1571.66,0.00049041,120]
[387863467,1758931880309,-1012.15,0.00049041,120]
[387863468,1758931880318,-480.0,0.00049041,120]
[387863469,1758931880328,-582.02,0.00049041,120]
[387863470,1758931880338,-480.0,0.00049041,120]
[387863471,1758931880346,-1420.95,0.00049041,120]
[387863472,1758931880356,-1415.9,0.00049041,120]
[387863473,1758931880365,-571.53,0.00049041,120]
[387863474,1758931880374,-480.0,0.00049041,120]
[387863475,1758931880383,-480.0,0.00049041,120]
[387863476,1758931880392,-480.0,0.00049041,120]
[387863477,1758931880401,-661.82,0.00049041,120]
[387863478,1758931880411,-711.54,0.00049041,120]
[387863479,1758931880424,-1357.32,0.00049041,120]
[387863480,1758931880434,-3543.12,0.00049041,120]
[387863481,1758931880444,-480.0,0.00049041,120]
[387863482,1758931880455,-608.9,0.00049041,120]
[387863483,1758931880464,-1098.48,0.00049041,120]
[387863484,1758931880474,-480.0,0.00049041,120]
[387863485,1758931880483,-480.0,0.00049041,120]
[387863486,1758931880495,-480.0,0.00049041,120]
[387863487,1758931880505,-1097.02,0.00049041,120]
[387863488,1758931880514,-807.05,0.00049041,120]
[387863489,1758931880524,-480.0,0.00049041,120]
[387863490,1758931880533,-1081.54,0.00049041,120]
[387863491,1758931880544,-480.0,0.00049041,120]
[387863492,1758931880553,-480.0,0.00049041,120]
[387863493,1758931880563,-9971.98,0.00049041,120]
[387863494,1758931880572,-649.55,0.00049041,120]
[387863495,1758931880581,-4462.38,0.00049041,3]
[387863496,1758931880591,-10430.65,0.00049041,120]
[387863497,1758931880602,-480.0,0.00049041,120]
[387863498,1758931880611,-2702.06,0.00049041,120]
[387863499,1758931880621,-480.0,0.00049041,120]
[387863500,1758931880630,-480.0,0.00049041,120]
[387863501,1758931880640,-2055.04,0.00049041,120]
[387863502,1758931880649,-3405.64,0.00049041,120]
[387863503,1758931880659,-524.82,0.00049041,120]
[387863504,1758931880668,-755.1,0.00049041,120]
[387863505,1758931880678,-642.28,0.00049041,120]
[387863506,1758931880687,-4483.5,0.00049041,120]
[387863507,1758931880697,-772.16,0.00049041,30]
[387863508,1758931880707,-760.25,0.00049041,120]
[387863509,1758931880717,-2365.79,0.00049041,120]
[387863510,1758931880726,-480.0,0.00049041,120]
[387863511,1758931880735,-811.62,0.00049041,120]
[387863512,1758931880744,-576.88,0.00049041,120]
[387863513,1758931880754,-679.43,0.00049041,120]
[387863514,1758931880764,-811.86,0.00049041,120]
[387863515,1758931880774,-480.0,0.00049041,120]
[387863516,1758931880784,-3497.99,0.00049041,120]
[387863517,1758931880794,-546.05,0.00049041,120]
[387863518,1758931880804,-480.0,0.00049041,120]
[387863519,1758931880814,-480.0,0.00049041,120]
[387863520,1758931880823,-480.0,0.00049041,120]
[387863521,1758931880833,-480.0,0.00049041,120]
[387863522,1758931880842,-2492.31,0.00049041,120]
[387863523,1758931880852,-981.92,0.00049041,120]
[387863524,1758931880861,-858.58,0.00049041,120]
[387863525,1758931880871,-480.0,0.00049041,120]
[387863526,1758931880880,-536.78,0.00049041,120]
[387863527,1758931880890,-1743.2,0.00049041,120]
[387863528,1758931880899,-480.0,0.00049041,120]
[387863529,1758931880908,-480.0,0.00049041,120]
[387863530,1758931880917,-4717.61,0.00049041,120]
[387863531,1758931880926,-480.0,0.00049041,120]
[387863532,1758931880937,-853.28,0.00049041,120]
[387863533,1758931880946,-767.4,0.00049041,120]
[387863534,1758931880956,-842.14,0.00049041,120]
[387863535,1758931880965,-2623.9,0.00049041,30]
[387863536,1758931880975,-1203.55,0.00049041,120]
[387863537,1758931880984,-8804.41083682,0.00049041,120]
[387863538,1758931881995,-75.61631998,0.00031973,2]
[387863539,1758931882314,-88.89760724,0.00031973,2]
[387863540,1758931882323,-480.0,0.00046027,30]
[387863541,1758931882332,-480.0,0.00046027,30]
[387863542,1758931882341,-458.41064,0.00046027,30]
[387863543,1758931882350,-512.36,0.00046027,30]
[387863544,1758931882360,-1857.6,0.00046027,30]
[387863545,1758931882369,-480.0,0.00046027,30]
[387863546,1758931882379,-277.89995474,0.00046027,30]
[387863547,1758931882388,-480.0,0.00046301,30]
[387863548,1758931882398,-480.0,0.00046301,30]
[387863549,1758931882407,-1857.6,0.00046301,30]
[387863550,1758931882418,-480.0,0.00046575,120]
[387863551,1758931882428,-480.0,0.00046575,120]
[387863552,1758931882439,-1857.6,0.00046575,120]
[387863553,1758931882448,-2722.23075233,0.00046749,2]
[387863554,1758931883448,160.0,0.00025205,2]
[387863555,1758931907552,167.0,0.00022959,8]
[387863556,1758932056769,1028.58,0.00019,2]
[387863558,1758932100304,153.56425783,0.00025205,2]
[387863564,1758932366587,160.0,0.0002,7]
[387863569,1758932413153,9840.01,0.00023,7]
[387863570,1758932413177,10000.01,0.00023,7]
[387863571,1758932413199,10000.01,0.00023,7]
[387863572,1758932413221,10000.01,0.00023,7]
[387863573,1758932413242,10000.01,0.00023,7]
[387863574,1758932413263,10000.01,0.00023,7]
[387863575,1758932413285,2479.94,0.00023,7]
[387863577,1758932457646,300.0,0.00023,2]
[387863578,1758932469305,300.0,0.00023,2]
[387863579,1758932480326,300.0,0.00023,2]
[387863581,1758932488820,417.15472785,0.00025,10]
[387863582,1758932489243,417.15472785,0.00024,7]
[387863583,1758932491220,300.0,0.00023,2]
[387863584,1758932502997,300.0,0.00023,2]
[387863585,1758932513957,300.0,0.00023,2]
[387863586,1758932521123,300.0,0.00023,2]
[387863587,1758932526139,300.0,0.00023,2]
[387863590,1758932533220,300.0,0.00023,2]
[387863591,1758932537704,300.0,0.00023,2]
[387863594,1758932544458,300.0,0.00023,2]
[387863596,1758932548327,300.0,0.00023,2]
[387863597,1758932556914,300.0,0.00023,2]
[387863600,1758932559316,300.0,0.00023,2]
[387863601,1758932567494,300.0,0.00023,2]
[387863604,1758932614190,4665.7005443,0.00025205,2]
[387863605,1758932614217,334.2994557,0.00025205,2]
[387863606,1758932622443,3822.86277907,0.00025205,2]
[387863607,1758932631555,5000.0,0.00025205,2]
[387863608,1758932638542,842.84776523,0.00021964,2]
[387863609,1758932638565,2037.73066244,0.00021964,2]
[387863610,1758932639567,3601.73103586,0.00025205,2]
[387863612,1758932648181,4360.5483017,0.00025205,2]
[387863613,1758932648207,639.4516983,0.00025205,2]
[387863617,1758932656159,5000.0,0.00025205,2]
[387863620,1758932671449,4360.5583017,0.00025205,2]
[387863621,1758932671474,639.4416983,0.00025205,2]
[387863624,1758932679527,5000.0,0.00025205,2]
[387863625,1758932695269,4360.5683017,0.00025205,2]
[387863626,1758932695294,639.4316983,0.00025205,2]
[387863627,1758932699180,273.0,9e-07,2]
[387863628,1758932703425,5000.0,0.00025205,2]
[387863631,1758932718919,4087.5783017,0.00025205,2]
[387863632,1758932718946,912.4216983,0.00025205,2]
[387863635,1758932726886,5000.0,0.00025205,2]
[387863636,1758932742288,4087.5883017,0.00025205,2]
[387863637,1758932742313,912.4116983,0.00025205,2]
[387863638,1758932750485,5000.0,0.00025205,2]
[387863639,1758932766185,5000.0,0.00025205,2]
[387863641,1758932774134,4052.38838155,0.00025205,2]
[387863644,1758932789477,947.62161845,0.00025205,2]
[387863645,1758932789500,4052.37838155,0.00025205,2]
[387863650,1758932797847,2961.52586404,0.00025205,2]
[387863652,1758932805984,2986.10575441,0.00025205,2]
[387863653,1758932806009,2013.89424559,0.00025205,2]
[387863657,1758932814514,5000.0,0.00025205,2]
[387863659,1758932830441,2986.11575441,0.00025205,2]
[387863660,1758932830464,2013.87424559,0.00025205,2]
[387863663,1758932838410,5000.0,0.00025205,2]
[387863664,1758932846753,2986.13575441,0.00025205,2]
[387863665,1758932846779,2013.85424559,0.00025205,2]
[387863666,1758932854699,4714.50689773,0.00025205,2]
[387863667,1758932862912,296.24755697,0.00025205,2]
[387863668,1758932862935,3271.64885668,0.00025205,2]
[387863669,1758932862958,1432.10358635,0.00025205,2]
[387863671,1758932868757,4581.08974178,0.00018,2]
[387863672,1758932870816,3986.81667187,0.00025205,2]
[387863673,1758932870840,1013.18332813,0.00025205,2]
[387863674,1758932872821,526.30120026,0.00018,2]
[387863676,1758932886236,5000.0,0.00025205,2]
[387863679,1758932909007,356.49073158,0.00022,2]
[387863680,1758932909040,3104.03474003,0.00025205,2]
[387863681,1758932909063,1895.96525997,0.00025205,2]
[387863683,1758932916107,1710.76608314,0.00024,2]
[387863684,1758932917627,663.81953528,0.00018,2]
[387863685,1758932919560,556.61591041,0.00022,7]
[387863686,1758932920983,163.31232933,0.00024,2]
[387863687,1758932922856,245.85639971,0.00023,2]
[387863688,1758932922897,1352.60673444,0.000215,2]
[387863689,1758932923074,458.70555099,0.00024,2]
[387863690,1758932923257,1000.0,0.000235,2]
[387863691,1758932924833,260.11277851,0.00015,2]
[387863693,1758932932016,1692.24941822,0.00025205,2]
[387863694,1758932932040,3307.75058178,0.00025205,2]
[387863695,1758932939945,5000.0,0.00025205,2]
[387863696,1758932945885,1251.46418355,0.00025205,2]
[387863697,1758932954101,-759.15329155,0.00026298,2]
[387863698,1758932955246,440.79523467,0.00025205,2]
[387863699,1758932955269,4559.20476533,0.00025205,2]
[387863700,1758932963687,5000.0,0.00025205,2]
[387863701,1758932969236,-4240.84670845,0.00026298,2]
[387863702,1758932969256,-222.15350291,0.0002779,2]
[387863703,1758932969276,-276.58227828,0.0002789,26]
[387863704,1758932969296,-300.0,0.00029283,2]
[387863705,1758932969316,-4974.1173645,0.00029284,2]
[387863706,1758932969336,-380.0,0.00029537,2]
[387863707,1758932969358,-164.7433,0.00029585,20]
[387863708,1758932969379,-176.21080532,0.0003063,2]
[387863709,1758932969400,-5000.0,0.00030631,3]
[387863710,1758932969420,-222.1535029,0.00031873,2]
[387863711,1758932969439,-1000.0,0.00031947,4]
[387863712,1758932969458,-1903.79515288,0.00031949,2]
[387863713,1758932969478,-40123.54299421,0.00031949,2]
[387863714,1758932969498,-500.0,0.00031958,2]
[387863715,1758932969520,-500.0,0.00031958,2]
[387863716,1758932969542,-289.28982145,0.00031958,2]
[387863717,1758932969563,-241.613,0.00031958,31]
[387863718,1758932969584,-74463.87437995,0.00031959,2]
[387863719,1758932979333,440.80523467,0.00025205,2]
[387863720,1758932979357,4559.19476533,0.00025205,2]
[387863722,1758932987196,2343.72961155,0.00025205,2]
[387863723,1758933002701,3097.08562312,0.00025205,2]
[387863724,1758933002723,1902.91437688,0.00025205,2]
[387863725,1758933025933,5000.0,0.00025205,2]
[387863739,1758933032097,-415.78,0.00030056,2]
[387863740,1758933032110,-4585.317443,0.00030056,2]
[387863741,1758933032120,-166.5,0.00030222,15]
[387863742,1758933032132,-166.5,0.00030322,15]
[387863743,1758933032141,-166.5,0.00030422,15]
[387863744,1758933032150,-166.5,0.00030522,15]
[387863745,1758933032159,-166.5,0.00030622,15]
[387863746,1758933032168,-166.52186197,0.00030722,15]
[387863747,1758933032177,-377.40719881,0.00031858,2]
[387863748,1758933032186,-673.0,0.00031949,10]
[387863749,1758933032196,-303.0,0.00031958,3]
[387863750,1758933032208,-191.0,0.00031958,3]
[387863751,1758933032217,-53597.74696353,0.00031959,2]
[387863770,1758933033800,3097.09562312,0.00025205,2]
[387863771,1758933033823,196.4350148,0.00025205,2]
[387863804,1758933037919,-241938.37865652,0.00031959,2]
[387863805,1758933037928,-334.24756958,0.00031973,5]
[387863806,1758933037938,-377.40719876,0.00032001,2]
[387863808,1758933037948,-480.0,0.00032048,120]
[387863809,1758933037958,-151.85223583,0.00032069,30]
[387863811,1758933037968,-377.40719876,0.00032145,2]
[387863812,1758933037977,-377.40719876,0.00032288,2]
[387863814,1758933037987,-377.40719876,0.00032432,2]
[387863815,1758933037996,-377.40719876,0.00032575,2]
[387863816,1758933038007,-377.40719876,0.00032719,2]
[387863817,1758933038016,-1434.28054503,0.00032732,30]
[387863818,1758933038026,-302.42545213,0.00032766,30]
[387863819,1758933038035,-377.40719876,0.00032862,2]
[387863820,1758933038044,-8720.06353945,0.00032862,2]
[387863821,1758933038054,-574.237686,0.00032877,2]
[387863822,1758933038063,-500.0,0.00032961,7]
[387863823,1758933038072,-500.0,0.00032961,7]
[387863824,1758933038081,-508.34291672,0.00032961,7]
[387863825,1758933038091,-500.0,0.00032961,7]
[387863826,1758933038101,-500.0,0.00032961,7]
[387863827,1758933038111,-500.0,0.00032961,7]
[387863828,1758933038120,-7499.39632095,0.00032962,2]
[387863829,1758933038130,-972677.91334215,0.00032962,20]
[387863830,1758933040006,-14657.61773578,0.00032962,20]
[387863872,1758933050121,5000.0,0.00025205,2]
[387863888,1758933058509,5000.0,0.00025205,2]
[387863907,1758933074188,5000.0,0.00025205,2]
[387863911,1758933082102,0.01,0.00025205,2]
[387863912,1758933082124,2009.70286147,0.00025205,2]
[387863914,1758933095943,160.0,0.00025205,2]
[387863915,1758933098191,5000.0,0.00025205,2]
[387863920,1758933120934,2830.30713853,0.00025205,2]
[387863921,1758933120960,2169.69286147,0.00025205,2]
[387863923,1758933136476,1128.94735919,0.00025205,2]
[387863925,1758933144559,5000.0,0.00025205,2]
[387863926,1758933147705,160.0,0.00022959,8]
[387863927,1758933153430,790.29634626,0.00025205,2]
[387863929,1758933169979,751.07343308,0.00025205,2]
[387863930,1758933170000,4248.92656692,0.00025205,2]
[387863932,1758933178566,4718.79377712,0.00025205,2]
[387863933,1758933193868,1032.28965596,0.00025205,2]
[387863934,1758933193892,3967.71034404,0.00025205,2]
[387863935,1758933201891,1000.0,0.00025205,2]
[387863936,1758933210395,3720.92768747,0.00025205,2]
[387863937,1758933218967,1311.37196849,0.00025205,2]
[387863938,1758933218992,3468.51374407,0.00025205,2]
[387863939,1758933228010,3997.09084686,0.00025205,2]
[387863940,1758933250741,2534.40540907,0.00025205,2]
[387863941,1758933250762,14.31105973,0.00025205,2]
[387863942,1758933266638,2637.62137654,0.00025205,2]
[387863943,1758933289650,2409.85984905,0.00025205,2]
[387863944,1758933306123,153.0,9e-07,2]
[387863945,1758933313025,1493.05889535,0.00025205,2]
[387863946,1758933320932,1493.04889535,0.00025205,2]
[387863948,1758933380381,296.24755697,0.00025205,2]
[387863949,1758933388326,246.05503918,0.00025205,2]
[387863958,1758933459988,219.08020896,0.00025151,15]
[387864032,1758933477340,299.99,0.00025205,2]
[387864112,1758933603563,159.0,0.000287,120]
[387864113,1758933603743,219.13,0.000249,2]
[387864129,1758933620154,159.0,0.000252,2]
[387864132,1758933620992,159.0,0.000252,2]
[387864139,1758933632016,159.0,0.000252,2]
[387864140,1758933642813,159.0,0.000252,3]
[387864141,1758933715245,160.0,0.00025205,2]
[387864143,1758933750586,300.0,0.000252,2]
[387864144,1758933761931,300.0,0.000252,2]
[387864236,1758933774420,174.0,0.00022986,8]
[387864341,1758934034123,-995.63402426,0.00026198,2]
[387864342,1758934034143,-1606.42854856,0.00028465,2]
[387864474,1758934087485,157.0,0.00022986,8]
[387864494,1758934146126,-2536.86678536,0.00028465,2]
[387864495,1758934146146,-65.4071356,0.00030211,2]
[387864496,1758934168122,-603.5847054,0.00030211,2]
[387864497,1758934168142,-136.3152946,0.00030851,30]
[387864498,1758934173234,-863.6847054,0.00030851,30]
[387864499,1758934173257,-168.0,0.00031641,2]
[387864500,1758934173277,-174.00897463,0.00031671,2]
[387864501,1758934173299,-168.0,0.00031673,2]
[387864502,1758934173320,-794.0,0.00031769,3]
[387864503,1758934173341,-400.0,0.00031769,2]
[387864504,1758934173361,-500.0,0.0003177,2]
[387864505,1758934173381,-500.0,0.0003177,2]
[387864506,1758934173402,-500.83673862,0.0003177,2]
[387864507,1758934173424,-500.0,0.0003177,2]
[387864508,1758934173445,-500.0,0.0003177,2]
[387864509,1758934173467,-500.0,0.0003177,2]
[387864510,1758934173488,-500.0,0.0003177,2]
[387864511,1758934173509,-308.92189202,0.0003177,2]
[387864512,1758934173529,-500.0,0.0003177,2]
[387864513,1758934173551,-500.0,0.0003177,2]
[387864514,1758934173574,-500.0,0.0003177,2]
[387864515,1758934173595,-646.16842368,0.0003177,2]
[387864516,1758934173615,-500.0,0.0003177,2]
[387864517,1758934173635,-508.9406489,0.0003177,2]
[387864518,1758934173657,-589.00932621,0.0003177,2]
[387864519,1758934173678,-458.0,0.0003177,2]
[387864520,1758934173700,-500.0,0.0003177,2]
[387864521,1758934173722,-213.08040307,0.0003177,2]
[387864522,1758934173746,-500.0,0.0003177,2]
[387864523,1758934173767,-158.64646737,0.0003177,2]
[387864524,1758934173788,-500.0,0.0003177,2]